bitfinex-derivatives/quotes_ETHF0:USTF0_20260119
["timestamp","ask_amount","ask_price","bid_price","bid_amount"]
[1768786384910,0.91416092,3214.7,3213.6,0.00467114]
[1768786385210,3.27449228,3214.8,3213.6,0.00467114]
[1768786385410,0.91384761,3214.7,3213.6,0.00467114]
[1768786385608,4.18809009,3214.6,3212.9,3.52692058]
[1768786385918,0.91359781,3214.5,3213.1,1.782]
[1768786386114,3.27449228,3214.6,3213.1,1.782]
[1768786386417,0.91351404,3214.5,3213.0,1.782]
[1768786386626,3.27449228,3214.6,3212.9,3.52692058]
[1768786386915,0.91306417,3214.5,3213.4,0.00467114]
[1768786387124,3.27449228,3214.6,3213.4,0.00467114]
[1768786389213,0.8357396,3215.0,3213.4,0.00467114]
[1768786389415,0.91230711,3214.9,3213.4,0.00467114]
[1768786389615,4.11023188,3215.1,3213.4,0.00467114]
[1768786389822,3.27449228,3214.9,3213.4,0.00467114]
[1768786390017,3.27449228,3214.7,3213.4,0.00467114]
[1768786390217,0.15559,3214.9,3213.4,0.00467114]
[1768786390432,0.8357396,3215.1,3213.4,0.00467114]
[1768786390614,0.89764842,3215.0,3213.4,0.00467114]
[1768786390921,0.89764842,3214.9,3213.4,0.00467114]
[1768786391122,4.11023188,3215.2,3213.4,3.5278942]
[1768786391322,0.89767259,3215.1,3213.4,3.5278942]
[1768786391521,0.89767259,3215.0,3213.4,3.5278942]
[1768786391718,4.11023188,3215.2,3213.4,3.5278942]
[1768786391921,0.89771652,3215.1,3213.4,3.5278942]
[1768786392122,3.27449228,3215.2,3213.4,3.5278942]
[1768786392314,0.89794676,3215.1,3213.4,3.5278942]
[1768786392515,3.27449228,3215.2,3213.4,3.5278942]
[1768786392825,0.89804189,3215.1,3213.4,3.5278942]
[1768786393024,3.27449228,3215.2,3213.4,3.5278942]
[1768786393224,0.89783721,3215.1,3213.4,3.5278942]
[1768786393427,3.27449228,3215.2,3213.4,3.5278942]
[1768786396125,0.8357396,3215.5,3213.4,3.5278942]
[1768786396324,4.11023188,3215.7,3213.4,3.5278942]
[1768786396628,0.89788604,3215.6,3213.7,3.52322306]
[1768786396826,3.27449228,3215.7,3213.9,3.52322306]
[1768786397026,0.89837409,3215.6,3213.9,3.52322306]
[1768786397327,3.27449228,3215.7,3213.9,3.52322306]
[1768786399329,0.89821591,3215.6,3213.9,3.52322306]
[1768786399525,3.27449228,3215.7,3213.9,3.52322306]
[1768786399725,0.89822551,3215.6,3213.9,3.52322306]
[1768786399926,3.27449228,3215.7,3213.9,3.52322306]
[1768786400523,3.27449228,3215.7,3213.9,3.67886306]
[1768786401027,3.27449228,3215.5,3213.9,1.782]
[1768786401234,3.27449228,3215.5,3213.4,3.6835542]
[1768786401435,3.27449228,3215.5,3213.5,4.894]
[1768786402327,3.27449228,3215.5,3213.5,5.04966]
[1768786402535,3.27449228,3215.5,3213.5,8.34988643]
[1768786403030,3.59234587,3215.3,3213.5,5.04966]
[1768786403220,3.59234587,3215.3,3213.5,3.45588643]
[1768786403426,3.59234587,3215.3,3213.6,4.894]
[1768786403829,3.59234587,3215.3,3213.5,3.45588643]
[1768786404030,3.59234587,3215.3,3213.6,4.894]
[1768786405827,4.4908879,3215.2,3213.7,1.782]
[1768786406027,3.59234587,3215.2,3213.7,1.782]
[1768786407624,3.59234587,3215.2,3213.5,3.45588643]
[1768786407828,0.9913096,3215.4,3213.6,1.782]
[1768786407829,3.59234587,3215.0,3213.6,1.782]
[1768786410536,4.49294115,3214.9,3213.7,1.782]
[1768786410840,3.59234587,3214.9,3213.7,1.782]
[1768786411744,3.59234587,3214.9,3213.4,0.00467114]
[1768786411928,3.59234587,3214.7,3213.4,0.00467114]
[1768786412131,0.90043177,3214.6,3213.4,0.00467114]
[1768786412433,4.49277764,3214.6,3213.4,0.00467114]
[1768786412632,3.59234587,3214.5,3213.4,0.00467114]
[1768786412933,0.90049082,3214.4,3213.4,0.00467114]
[1768786413136,3.59234587,3214.5,3213.4,0.00467114]
[1768786413335,0.90048063,3214.4,3213.4,0.00467114]
[1768786413531,0.8357396,3214.7,3213.4,0.00467114]
[1768786413933,0.90034801,3214.6,3213.4,0.00467114]
[1768786414140,4.42808547,3215.0,3213.4,3.30489757]
[1768786414339,0.90045934,3214.9,3213.4,3.30489757]
[1768786414540,0.90045934,3214.8,3213.4,3.30489757]
[1768786414743,4.42808547,3215.0,3213.4,3.30489757]
[1768786415041,0.9004214,3214.9,3213.4,3.30489757]
[1768786415238,0.9004214,3214.8,3213.4,3.30489757]
[1768786415443,4.42808547,3215.0,3213.4,3.30489757]
[1768786415644,0.90042768,3214.9,3213.4,3.30489757]
[1768786415847,0.90042768,3214.8,3213.4,3.30489757]
[1768786416144,3.59234587,3215.0,3213.4,3.30489757]
[1768786416347,0.90046598,3214.9,3213.4,3.30489757]
[1768786416539,0.90046598,3214.8,3213.4,3.30489757]
[1768786416843,0.8357396,3215.3,3213.4,3.46055757]
[1768786417540,1.7363964,3215.3,3213.4,3.46055757]
[1768786417738,0.9006568,3215.2,3213.4,3.46055757]
[1768786417936,0.9006568,3215.1,3213.4,3.46055757]
[1768786418139,0.8357396,3215.3,3213.6,3.45330266]
[1768786419150,4.18034596,3215.3,3213.6,3.45330266]
[1768786419452,0.90066713,3215.2,3213.6,3.45330266]
[1768786420249,4.24527349,3215.2,3213.6,3.45330266]
[1768786420447,4.24527349,3215.1,3213.5,0.15566]
[1768786420747,3.34460636,3214.9,3213.6,4.893]
[1768786420948,3.34460636,3214.9,3213.4,0.00467114]
[1768786420949,0.90066713,3214.8,3213.4,0.00467114]
[1768786421139,0.90066713,3214.8,3213.5,1.781]
[1768786421450,0.90066713,3214.8,3213.4,0.00467114]
[1768786421648,4.18034596,3214.2,3212.4,1.781]
[1768786421942,0.90066713,3214.1,3212.4,5.23430266]
[1768786422246,0.90066713,3214.1,3211.7,0.25418832]
[1768786422247,3.34460636,3214.0,3211.7,0.25418832]
[1768786422451,0.8357396,3211.9,3210.0,3.45330266]
[1768786422653,0.90066713,3211.8,3210.1,3.45330266]
[1768786422952,0.90066713,3211.7,3210.3,3.45330266]
[1768786423141,0.90066713,3211.6,3210.3,3.45330266]
[1768786423448,1.73467148,3211.5,3210.0,0.00324556]
[1768786423645,1.73467148,3211.4,3210.0,0.00324556]
[1768786423841,0.90066713,3211.3,3210.0,0.00324556]
[1768786424042,0.90066713,3211.2,3209.7,3.45330266]
[1768786424250,0.90066713,3211.1,3209.2,4.49730266]
[1768786424441,0.15582,3210.2,3207.6,3.45330266]
[1768786424651,0.90066713,3210.1,3207.6,3.70817373]
[1768786424949,3.94600435,3210.7,3207.6,3.70817373]
[1768786425252,1.79463387,3210.6,3207.6,3.71186848]
[1768786425452,0.96062952,3210.5,3207.6,3.71186848]
[1768786425650,40.8,3210.6,3207.6,3.71186848]
[1768786425949,0.95798599,3210.5,3207.6,3.71186848]
[1768786426142,3.112,3210.7,3207.6,3.86780848]
[1768786426337,43.912,3210.7,3207.8,3.45330266]
[1768786426537,40.8,3210.7,3208.0,3.45330266]
[1768786426747,40.8,3210.7,3208.1,1.782]
[1768786426946,40.8,3210.7,3208.2,3.45330266]
[1768786427351,0.00467114,3209.8,3208.2,3.45330266]
[1768786427743,0.00467114,3209.8,3208.7,0.00467114]
[1768786427948,0.00467114,3209.8,3208.7,3.4579738]
[1768786430445,0.00467114,3209.8,3208.8,5.23530266]
[1768786430647,0.00467114,3209.8,3208.9,3.45330266]
[1768786431241,0.15578,3211.1,3208.9,3.45330266]
[1768786433457,40.8,3211.3,3208.9,3.45330266]
[1768786433654,40.8,3211.3,3208.9,3.60918266]
[1768786433855,1.871,3211.6,3208.9,3.60918266]
[1768786434154,1.871,3211.6,3209.1,3.52762701]
[1768786434347,40.8,3211.6,3209.1,3.68349701]
[1768786434750,40.8,3211.6,3209.2,0.15587]
[1768786434949,0.15574,3211.8,3209.3,3.52762701]
[1768786435848,0.15574,3211.8,3209.3,3.68348701]
[1768786437153,0.00467114,3210.9,3209.5,3.52762701]
[1768786437456,0.00467114,3210.9,3209.5,3.68347701]
[1768786437653,0.00467114,3210.9,3210.0,3.52762701]
[1768786437956,0.15574,3211.8,3210.2,3.52762701]
[1768786440658,0.00264986,3211.9,3210.2,3.52762701]
[1768786444155,0.00264986,3211.9,3210.5,3.52762701]
[1768786444558,0.15568,3213.0,3210.9,3.52762701]
[1768786444762,0.15568,3213.0,3211.1,3.52762701]
[1768786445357,40.8,3213.3,3211.1,3.52762701]
[1768786445546,0.00384503,3213.3,3211.1,3.52762701]
[1768786445752,0.00384503,3213.3,3211.0,4.899]
[1768786445753,0.00384503,3213.3,3211.8,3.52762701]
[1768786449348,0.00384503,3213.3,3211.8,3.68336701]
[1768786449662,0.006224,3213.4,3211.8,3.68336701]
[1768786449869,1.82361337,3214.3,3211.7,0.00467114]
[1768786449870,0.98962435,3214.3,3212.3,3.52762701]
[1768786450052,0.99645567,3214.2,3212.5,3.52762701]
[1768786450252,1.1094206,3214.5,3212.7,3.52762701]
[1768786450253,0.83400435,3214.5,3212.7,3.52762701]
[1768786450555,0.83400435,3214.4,3212.7,3.52762701]
[1768786450760,0.99714518,3214.3,3212.7,3.53138065]
[1768786450959,0.99714518,3214.2,3212.7,3.53138065]
[1768786451166,0.83728019,3214.5,3212.7,3.53138065]
[1768786451356,0.83400435,3214.4,3212.7,3.53138065]
[1768786451556,0.99617289,3214.3,3212.7,3.53138065]
[1768786452061,0.99617289,3214.3,3212.8,1.782]
[1768786452358,0.00308654,3213.8,3212.9,7.42962701]
[1768786452765,0.00308654,3213.8,3213.0,3.52762701]
[1768786453257,0.00308654,3213.8,3213.1,1.782]
[1768786453463,0.00308654,3213.8,3212.7,0.00375364]
[1768786453658,0.00308654,3213.8,3212.7,3.53138065]
[1768786455554,0.00308654,3213.8,3212.7,5.31338065]
[1768786457370,0.00308654,3213.8,3212.7,5.31238065]
[1768786458065,0.00308654,3213.8,3212.7,3.53138065]
[1768786458261,0.99501466,3213.7,3212.7,0.00375364]
[1768786458466,0.99501466,3213.6,3212.7,0.00375364]
[1768786458669,0.99501466,3213.5,3212.7,0.00375364]
[1768786458970,0.99501466,3213.4,3212.7,0.00375364]
[1768786459170,0.83400435,3213.7,3212.7,0.00375364]
[1768786459365,0.99520086,3213.6,3212.7,0.00375364]
[1768786459671,0.99520086,3213.5,3212.7,0.00375364]
[1768786459968,0.99520086,3213.4,3212.7,0.00375364]
[1768786460158,0.83400435,3213.7,3212.7,0.00375364]
[1768786460355,0.99553443,3213.6,3212.7,0.00375364]
[1768786460570,1.82953878,3213.6,3212.7,0.00375364]
[1768786460762,0.99553443,3213.5,3212.7,0.00375364]
[1768786462268,0.99553443,3213.5,3212.7,3.53138065]
[1768786462570,0.83709089,3213.8,3212.7,3.53138065]
[1768786462770,0.99736121,3213.7,3212.7,3.53138065]
[1768786462968,0.00308654,3213.8,3212.7,3.53138065]
[1768786463369,0.99812434,3213.7,3212.7,3.53138065]
[1768786463557,0.83400435,3214.1,3212.7,3.53138065]
[1768786464263,0.83400435,3214.2,3212.7,3.53138065]
[1768786464473,0.83400435,3214.1,3212.7,3.53138065]
[1768786465967,1.8606733,3213.6,3212.4,3.26581159]
[1768786466168,2.69467765,3213.6,3212.4,3.26581159]
[1768786466365,0.83400435,3213.2,3212.1,1.231]
[1768786466576,0.83400435,3213.2,3212.1,1.597]
[1768786467068,0.83400435,3213.2,3212.1,1.60098805]
[1768786467379,0.83400435,3213.1,3212.1,1.60098805]
[1768786468373,0.83400435,3213.1,3212.1,1.78498805]
[1768786468871,0.83400435,3213.0,3212.1,1.78498805]
[1768786469375,0.83400435,3213.0,3212.1,5.05079964]
[1768786470676,0.83400435,3213.0,3212.1,3.26979964]
[1768786470875,0.83400435,3213.0,3212.1,5.05079964]
[1768786471180,0.83400435,3212.9,3212.1,5.05079964]
[1768786472179,0.83400435,3213.0,3212.2,3.26581159]
[1768786472381,1.1094206,3213.8,3212.2,3.26581159]
[1768786472578,1.1094206,3214.0,3212.2,3.26581159]
[1768786472874,1.1094206,3214.1,3212.3,3.42152159]
[1768786473073,1.1094206,3214.2,3212.3,3.42152159]
[1768786473375,1.1094206,3213.8,3212.3,3.26581159]
[1768786473580,1.1094206,3213.7,3212.5,3.26581159]
[1768786474177,1.1094206,3213.5,3212.5,3.26581159]
[1768786474768,1.1094206,3213.5,3212.6,1.781]
[1768786475169,1.1094206,3213.4,3212.6,5.04681159]
[1768786475373,1.1094206,3213.5,3212.7,3.26581159]
[1768786475574,1.1094206,3213.6,3212.7,3.26581159]
[1768786475976,1.1094206,3213.5,3212.7,3.26581159]
[1768786476577,1.1094206,3213.4,3212.8,1.548]
[1768786477487,1.1094206,3213.4,3212.9,5.04681159]
[1768786478497,1.1094206,3213.4,3212.9,3.26581159]
[1768786478790,2.78448023,3214.2,3213.1,3.38836055]
[1768786478791,2.22399116,3214.0,3213.1,3.38836055]
[1768786479100,2.22399116,3214.3,3213.1,3.38836055]
[1768786479494,0.00327584,3214.5,3213.2,0.00467114]
[1768786480096,0.00327584,3214.5,3213.3,1.781]
[1768786480595,0.00327584,3214.5,3213.4,1.781]
[1768786480797,2.227267,3214.5,3213.4,1.781]
[1768786481195,2.227267,3214.5,3213.3,1.781]
[1768786481396,2.22399116,3214.4,3213.3,1.781]
[1768786481598,1.8606733,3214.3,3213.2,0.00467114]
[1768786482092,2.22399116,3214.2,3213.2,0.00467114]
[1768786482498,0.15562,3214.3,3213.2,3.39303169]
[1768786482698,0.2441396,3215.5,3213.2,3.39303169]
[1768786482699,3.40476725,3216.5,3214.2,1.8606733]
[1768786482902,3.40476725,3216.5,3214.3,1.781]
[1768786483295,3.40476725,3216.4,3213.8,1.8606733]
[1768786483498,3.40476725,3216.4,3215.1,0.00467114]
[1768786483695,3.40850648,3216.4,3215.1,0.00698772]
[1768786483895,5.98458471,3216.0,3215.1,0.93798772]
[1768786484290,5.98458471,3215.8,3215.1,1.44898772]
[1768786484495,5.98458471,3216.0,3215.1,1.44898772]
[1768786484901,5.98458471,3215.8,3215.1,1.44898772]
[1768786485096,5.98458471,3216.1,3215.1,1.44898772]
[1768786485396,0.00373923,3216.4,3215.1,1.44898772]
[1768786485700,9.38935196,3216.2,3215.1,0.00698772]
[1768786485895,3.40476725,3216.2,3215.2,0.764]
[1768786486101,0.00373923,3216.4,3215.2,0.764]
[1768786486301,5.98458471,3216.3,3215.2,0.764]
[1768786486902,3.40850648,3216.4,3215.1,0.00698772]
[1768786487106,5.98458471,3216.2,3215.3,1.763]
[1768786487294,5.98458471,3216.2,3215.1,1.72398772]
[1768786487494,5.98458471,3216.1,3215.1,1.72398772]
[1768786487697,5.98458471,3216.2,3215.1,1.72398772]
[1768786487989,5.98458471,3216.2,3215.1,0.00698772]
[1768786488192,5.98458471,3216.1,3215.1,0.00698772]
[1768786488400,5.98458471,3216.2,3215.1,0.00698772]
[1768786488596,5.98458471,3216.3,3215.1,0.00698772]
[1768786489002,5.98458471,3216.2,3215.1,0.00698772]
[1768786489202,9.38935196,3216.3,3215.1,0.00698772]
[1768786489505,9.38935196,3216.1,3215.1,0.00698772]
[1768786489998,3.40476725,3216.1,3215.1,0.00698772]
[1768786490200,5.98458471,3215.8,3215.1,0.00698772]
[1768786490405,5.98458471,3215.7,3215.1,0.00698772]
[1768786490910,5.98458471,3215.5,3215.1,0.00698772]
[1768786491105,5.98458471,3215.7,3214.7,3.712]
[1768786491313,3.40476725,3215.8,3214.3,1.8606733]
[1768786491607,3.40476725,3215.8,3214.4,4.141]
[1768786492110,3.40476725,3215.8,3214.4,4.14501266]
[1768786492310,3.40476725,3215.8,3214.8,0.00467114]
[1768786492805,5.98458471,3215.6,3214.8,0.00467114]
[1768786493108,5.98458471,3215.4,3214.4,0.00401266]
[1768786493303,9.49701399,3215.4,3214.4,0.00401266]
[1768786493504,5.98458471,3215.2,3214.4,0.00401266]
[1768786493904,5.98458471,3215.1,3214.4,0.00401266]
[1768786494107,5.98458471,3215.2,3214.5,0.00467114]
[1768786494606,5.98458471,3215.0,3214.4,0.00401266]
[1768786494807,5.98458471,3215.2,3214.1,4.891]
[1768786495109,5.98458471,3215.3,3214.1,4.891]
[1768786495703,5.98458471,3215.3,3214.1,4.89495281]
[1768786496413,5.98458471,3215.3,3214.4,0.00467114]
[1768786496811,3.51242928,3215.4,3214.4,0.00467114]
[1768786497412,5.98458471,3215.2,3214.4,0.00467114]
[1768786497610,5.98458471,3215.1,3214.4,0.00467114]
[1768786497803,5.98458471,3215.2,3214.4,0.00467114]
[1768786498112,3.51242928,3215.4,3214.4,0.00467114]
[1768786498310,5.98458471,3215.2,3214.4,0.00467114]
[1768786498712,5.98458471,3215.1,3214.4,0.00467114]
[1768786498907,5.98458471,3215.2,3214.4,0.00467114]
[1768786499308,5.98458471,3215.1,3214.4,0.00467114]
[1768786499514,5.98458471,3215.2,3214.4,0.00467114]
[1768786499813,9.49701399,3215.1,3214.4,0.00467114]
[1768786500016,3.51242928,3215.1,3214.4,0.00467114]
[1768786500217,5.98458471,3215.0,3214.4,0.00467114]
[1768786500514,5.98458471,3215.0,3214.1,0.00395281]
[1768786500713,3.51710042,3215.1,3214.1,0.00395281]
[1768786500910,9.50168513,3215.1,3214.2,1.779]
[1768786501117,3.51710042,3215.1,3214.2,1.779]
[1768786501315,9.50168513,3215.1,3214.2,1.779]
[1768786501505,3.51710042,3215.1,3214.2,1.779]
[1768786501816,3.51710042,3215.1,3214.3,0.00467114]
[1768786502315,5.98458471,3215.0,3214.3,0.00467114]
[1768786502714,5.98458471,3214.9,3214.3,0.00467114]
[1768786503011,5.98458471,3215.0,3214.3,0.00467114]
[1768786503516,5.98458471,3214.8,3214.1,0.00395281]
[1768786503716,5.98458471,3214.9,3214.0,1.779]
[1768786503916,3.51710042,3215.1,3213.9,1.779]
[1768786504216,9.49701399,3214.8,3213.7,4.718]
[1768786504417,3.51242928,3214.8,3213.3,2.0163433]
[1768786504717,3.51242928,3214.3,3213.3,1.78232555]
[1768786504909,5.98458471,3214.2,3213.3,1.78232555]
[1768786505212,9.49701399,3214.2,3213.3,1.78232555]
[1768786505413,5.98458471,3214.1,3213.3,0.00332555]
[1768786505710,5.98721601,3214.1,3213.3,0.00332555]
[1768786505919,5.98458471,3214.0,3213.3,0.00332555]
[1768786506211,3.51506058,3214.1,3213.4,0.00467114]
[1768786506417,3.51242928,3213.7,3213.3,0.00332555]
[1768786506621,3.51242928,3213.7,3212.7,0.1557]
[1768786506807,0.0026313,3214.1,3212.8,4.891]
[1768786507009,5.98458471,3214.0,3212.8,4.891]
[1768786507212,5.98458471,3214.0,3212.9,1.779]
[1768786507511,0.0026313,3214.1,3212.9,1.78255963]
[1768786507716,3.51242928,3214.7,3213.1,0.15879416]
[1768786508413,3.51242928,3214.7,3213.2,0.15567]
[1768786508620,3.51574557,3214.7,3213.2,0.15567]
[1768786509225,3.51574557,3214.7,3213.3,4.891]
[1768786509526,3.51574557,3214.7,3213.4,4.891]
[1768786510011,9.50033028,3214.7,3213.4,4.891]
[1768786510215,9.50033028,3214.7,3213.2,0.15567]
[1768786510418,3.51574557,3214.7,3213.3,4.891]
[1768786510614,3.51242928,3214.5,3213.1,0.00311416]
[1768786510820,3.51242928,3214.1,3213.1,1.78211416]
[1768786511015,3.51242928,3214.1,3213.1,0.00311416]
[1768786511316,5.98458471,3213.9,3213.1,0.00311416]
[1768786511518,5.98458471,3213.8,3213.1,0.00311416]
[1768786511709,5.98458471,3213.9,3213.1,0.00311416]
[1768786512118,5.98458471,3213.8,3213.1,0.00311416]
[1768786512322,5.98458471,3213.9,3213.1,0.00311416]
[1768786512712,5.98458471,3213.8,3213.1,0.00311416]
[1768786512912,5.98458471,3213.9,3213.1,0.00311416]
[1768786513316,3.51242928,3214.1,3213.1,0.00311416]
[1768786513317,5.98458471,3213.8,3213.1,0.00311416]
[1768786513517,5.98458471,3213.9,3213.1,0.00311416]
[1768786514014,5.98458471,3213.8,3213.1,0.00311416]
[1768786514221,5.98458471,3213.9,3213.1,0.00311416]
[1768786514616,3.51242928,3214.6,3213.3,1.8606733]
[1768786515018,3.51242928,3214.6,3213.2,0.15567]
[1768786515722,3.51242928,3214.6,3213.3,4.891]
[1768786516719,3.51242928,3214.6,3213.4,4.891]
[1768786519319,3.51242928,3213.9,3212.1,2.93832385]
[1768786519523,3.51242928,3213.7,3212.1,0.15572]
[1768786520416,3.51242928,3213.7,3212.1,0.1590462]
[1768786520618,0.00467114,3213.2,3212.1,0.1590462]
[1768786520820,3.51710042,3213.2,3212.1,0.1590462]
[1768786521531,0.00467114,3213.2,3212.1,0.1590462]
[1768786521826,0.00467114,3213.2,3212.2,0.15572]
[1768786522425,0.00467114,3213.2,3212.3,4.892]
[1768786525826,0.00467114,3213.2,3212.2,0.15572]
[1768786526029,0.00467114,3213.2,3212.4,1.779]
[1768786527334,0.00467114,3213.2,3212.2,0.15572]
[1768786527536,0.00467114,3213.2,3212.3,4.892]
[1768786528030,0.00467114,3213.2,3212.3,5.04772]
[1768786528536,0.00467114,3213.2,3212.1,0.0033262]
[1768786528834,3.39889896,3213.2,3212.2,4.892]
[1768786529031,3.39889896,3213.2,3212.1,0.0033262]
[1768786529232,3.39889896,3213.2,3212.1,1.7823262]
[1768786532335,3.39889896,3213.2,3212.1,0.0033262]
[1768786532536,3.39889896,3213.2,3212.1,1.7823262]
[1768786533438,3.39889896,3213.2,3212.1,0.0033262]
[1768786533734,0.00467114,3213.2,3212.1,0.0033262]
[1768786533935,0.00467114,3213.2,3212.3,0.15571]
[1768786534735,3.39889896,3213.2,3211.3,3.89860697]
[1768786534936,3.39422782,3213.0,3211.4,0.15576]
[1768786535833,3.39422782,3213.0,3211.4,0.1585807]
[1768786536139,3.39889896,3213.2,3211.7,0.15574]
[1768786536544,3.39889896,3213.2,3211.8,1.779]
[1768786536840,3.39889896,3213.2,3211.8,1.93474]
[1768786541048,3.39889896,3213.2,3211.8,0.15574]
[1768786541252,3.39889896,3213.2,3211.9,4.893]
[1768786541445,3.39889896,3213.2,3212.0,1.779]
[1768786541943,3.39889896,3213.2,3211.8,1.779]
[1768786542147,3.39889896,3213.2,3211.6,1.779]
[1768786542546,3.39889896,3213.2,3211.4,0.0028207]
[1768786542851,3.55457896,3213.2,3211.4,0.0028207]
[1768786543940,3.39566755,3213.0,3211.4,0.0028207]
[1768786548354,3.39566755,3212.8,3211.4,0.0028207]
[1768786551048,3.39566755,3212.8,3211.4,1.7818207]
[1768786553354,3.39566755,3212.8,3211.4,1.9375807]
[1768786553554,3.39566755,3212.8,3211.5,0.15575]
[1768786553857,0.00467114,3213.2,3211.5,0.15575]
[1768786554158,3.42022263,3213.2,3211.5,0.15575]
[1768786555053,3.42022263,3213.2,3211.4,1.7818207]
[1768786555260,3.42022263,3213.2,3211.8,0.15574]
[1768786556350,3.42022263,3213.2,3211.9,4.893]
[1768786557958,2.98722263,3213.2,3211.8,0.15574]
[1768786558257,2.98722263,3213.2,3211.9,1.779]
[1768786558455,2.98722263,3213.2,3212.0,1.779]
[1768786559055,0.00467114,3212.9,3212.0,1.779]
[1768786559251,0.00467114,3212.9,3211.4,0.1585807]
[1768786559456,0.00467114,3212.9,3212.0,1.779]
[1768786559961,3.42022263,3212.9,3211.6,0.15575]
[1768786560150,3.42022263,3212.9,3211.6,3.26975]
[1768786560467,3.42022263,3212.9,3211.6,1.779]
[1768786560655,3.42022263,3212.9,3211.5,1.779]
[1768786561561,3.42022263,3212.9,3211.4,0.0028207]
[1768786561562,3.41555149,3212.7,3211.4,0.0028207]
[1768786561754,3.41555149,3212.5,3211.4,0.0028207]
[1768786561951,3.41555149,3212.3,3210.5,2.93840385]
[1768786562262,3.41555149,3212.1,3210.6,1.779]
[1768786563072,3.4192011,3212.1,3210.6,1.78299668]
[1768786563260,3.41555149,3211.9,3210.7,1.779]
[1768786565466,0.00364961,3212.1,3210.7,1.779]
[1768786565662,3.4192011,3212.1,3210.7,1.779]
[1768786565859,3.4192011,3212.1,3210.8,4.893]
[1768786566168,3.4192011,3212.1,3210.6,0.00399668]
[1768786566363,3.4192011,3212.1,3210.7,4.893]
[1768786567264,3.4192011,3212.1,3210.8,1.779]
[1768786569967,0.00364961,3212.1,3211.0,0.15578]
[1768786572281,3.4192011,3212.1,3211.1,1.779]
[1768786572660,3.4192011,3212.1,3210.6,3.11799668]
[1768786572858,3.4192011,3212.1,3210.6,0.00399668]
[1768786573067,3.4192011,3212.1,3210.7,1.78]
[1768786573573,3.4192011,3212.1,3210.6,0.00399668]
[1768786573772,3.4192011,3212.1,3210.7,1.78]
[1768786575772,3.4192011,3212.1,3210.6,0.00399668]
[1768786575965,3.4192011,3212.1,3210.7,1.78]
[1768786577171,3.4192011,3212.1,3210.6,1.78399668]
[1768786584277,0.00364961,3212.1,3210.6,1.78399668]
[1768786584876,0.00364961,3212.1,3210.9,0.15578]
[1768786586292,0.00364961,3212.1,3211.0,4.895]
[1768786587388,3.3614817,3212.1,3211.1,1.78]
[1768786587583,3.3614817,3212.1,3211.1,4.895]
[1768786587989,0.00364961,3212.1,3211.1,4.895]
[1768786588286,3.35783209,3212.6,3211.2,0.15577]
[1768786589291,3.36026506,3212.6,3211.2,0.15577]
[1768786589698,0.00243297,3212.6,3211.2,0.15577]
[1768786590900,3.36026506,3212.6,3211.2,3.27077]
[1768786591096,3.36026506,3212.6,3211.3,1.78]
[1768786591491,3.36026506,3212.6,3211.2,0.15577]
[1768786591797,3.36026506,3212.6,3211.3,1.78]
[1768786595305,3.36026506,3212.6,3211.2,0.15577]
[1768786595608,3.36026506,3212.6,3211.3,1.78]
[1768786598503,0.00467114,3212.9,3211.6,1.8629994]
[1768786598806,0.00467114,3212.9,3211.7,0.15574]
[1768786599599,0.00816994,3212.9,3211.7,0.15574]
[1768786601103,3.43325907,3213.5,3212.0,0.15573]
[1768786601306,3.43325907,3213.5,3212.1,0.15573]
[1768786601509,3.43325907,3213.5,3212.2,4.894]
[1768786602104,3.43325907,3214.3,3212.6,0.1557]
[1768786603205,3.43610682,3214.3,3212.8,0.15569]
[1768786603409,0.00284775,3214.3,3213.1,2.0186794]
[1768786603611,0.00284775,3214.3,3213.2,1.93567]
[1768786603910,0.00284775,3214.3,3213.3,4.894]
[1768786605500,0.00467114,3214.1,3213.2,0.15567]
[1768786605701,0.00467114,3214.1,3213.4,1.78]
[1768786606010,0.00284775,3214.3,3213.4,1.93566]
[1768786606215,3.43325907,3215.7,3213.7,0.15565]
[1768786607310,3.43641432,3215.7,3213.7,0.15565]
[1768786611420,3.43641432,3215.7,3213.8,4.892]
[1768786612120,3.43325907,3215.5,3213.7,1.779]
[1768786612521,3.43325907,3215.5,3213.5,1.779]
[1768786613224,3.43325907,3215.5,3213.6,1.779]
[1768786613425,3.43325907,3215.5,3213.3,0.16034114]
[1768786613626,3.43325907,3215.5,3213.4,4.868]
[1768786613929,3.43325907,3215.5,3213.7,1.8629994]
[1768786616923,3.43325907,3215.5,3213.4,5.02366]
[1768786617228,3.58881907,3215.5,3213.5,4.891]
[1768786617530,3.44218182,3215.1,3213.4,1.778]
[1768786621512,3.44218182,3215.1,3213.5,0.15566]
[1768786622433,0.00315525,3215.7,3213.6,1.778]
[1768786622434,3.44218182,3214.9,3213.6,1.778]
[1768786624927,3.44218182,3214.9,3213.3,0.00467114]
[1768786626433,3.44218182,3214.9,3213.5,0.15566]
[1768786631232,3.44218182,3214.9,3213.6,4.89]
[1768786631432,3.44218182,3214.7,3213.6,4.89]
[1768786633627,0.8344353,3215.3,3213.7,0.15564]
[1768786635142,1.71073588,3215.2,3213.7,0.15564]
[1768786635436,0.87630058,3215.1,3213.8,1.778]
[1768786635745,3.44218182,3214.9,3213.8,1.778]
[1768786637645,3.44218182,3214.7,3213.8,1.778]
[1768786638246,3.44218182,3214.7,3213.4,1.2913368]
[1768786638456,0.00467114,3214.6,3213.5,4.89]
[1768786639850,0.00467114,3214.6,3213.5,5.04566]
[1768786642244,0.00467114,3214.6,3213.7,1.2913368]
[1768786642446,3.44218182,3215.1,3213.7,1.2913368]
[1768786642746,0.87675962,3215.0,3213.7,1.2913368]
[1768786643049,0.87675962,3214.9,3213.7,1.2913368]
[1768786643249,3.44218182,3215.1,3213.7,1.2913368]
[1768786643437,0.87674034,3215.0,3214.1,1.2913368]
[1768786643746,3.28127787,3215.4,3214.1,1.2913368]
[1768786643939,4.1581035,3215.3,3214.1,1.2913368]
[1768786644135,0.87682563,3215.2,3214.2,1.779]
[1768786644332,3.28127787,3215.3,3214.2,1.779]
[1768786644555,0.00467114,3215.0,3214.2,1.779]
[1768786645841,4.1576579,3214.9,3214.1,1.779]
[1768786646041,3.28127787,3214.9,3214.1,1.779]
[1768786646446,0.00467114,3215.0,3214.1,1.779]
[1768786646746,0.00315525,3215.7,3214.9,1.2913368]
[1768786646936,3.28127787,3216.3,3214.7,1.2913368]
[1768786647136,3.28127787,3216.1,3214.6,0.1556]
[1768786647343,3.28127787,3215.9,3214.7,1.779]
[1768786648056,3.28514504,3215.9,3215.0,0.00467114]
[1768786648244,3.28514504,3215.9,3215.1,1.779]
[1768786649651,3.28514504,3215.9,3215.0,0.00467114]
[1768786649852,3.28514504,3215.9,3215.0,1.78367114]